Workbook

Sheet 1-е ОУ
A1: Дата аккредитации | B1: Образовательная организация | C1: Взаимодействие с окружающими людьми | D1: Способность самостоятельно эффективно действовать | E1: Готовность к активному творчеству | F1: Волевая готовность к преодолению трудностей в своих делах и занятиях | G1: Способность к сочувствию по отношению к окружающим | H1: Эмоц-чувст неприятие прояв неуваж отн к ценностям культур | I1: Настрой на совмест. деятельность с др. людьми | J1: Уваж.отношение к правам и свободам других | K1: Конструктивное взаим.со взрослым общ. и сверстниками | L1: Добросовестная конкуренция в различ. видах деятельности | M1: Чувство прекрасного.Восприятие искусства | N1: Оценка последствий деятельности чел. для окруж. Среды | O1: Способность разумно огранич.свои потребности | P1: Интерес к новизне | Q1: Средства и способы получ. инфо для самосовершенст-вования | R1: Стремление поддерж. культуру тела и физ. Развитость | S1: Умения поддерживать свою работоспособность | T1: Принятие самостоятельных решении. Самоорганизация | U1: Развитие умений планировать свою деятельность
C2: 1.2 | D2: 3.1. | E2: 5.2. | F2: 14. | G2: 1.1 | H2: 2.1 | I2: 2.2 | J2: 3.2 | K2: 4.1 | L2: 4.2 | M2: 5.1 | N2: 6.1 | O2: 6.2 | P2: 7.1 | Q2: 7.2 | R2: 8.1 | S2: 8.2 | T2: 9.1 | U2: 9.2
A3: ГРУППА А
A4: 2023-12-04 | B4: МБОУ СОШ с. Канаевка | C4: 0.48 | D4: 0.73 | E4: 0.58 | F4: 0.5 | G4: 0.86 | H4: 0.07 | I4: 0.36 | J4: 0.79 | K4: 0.07 | L4: 0.43 | M4: 0.62 | N4: 0.21 | O4: 0.43 | P4: 0.48 | Q4: 0.18 | R4: 0.71 | S4: 0.14 | T4: 0.29 | U4: 0.19
A5: 2023-12-04 | B5: МБОУ СОШ с. Канаевка | C5: 0.76 | D5: 0.39 | E5: 0.36 | F5: 0.56 | G5: 1 | H5: 0.62 | I5: 1 | J5: 1 | K5: 0.16 | L5: 0.52 | M5: 0.42 | N5: 1 | O5: 0.62 | P5: 1 | Q5: 0.21 | R5: 0.62 | S5: 0.21 | T5: 0.21 | U5: 1
A6: 2023-12-04 | B6: МБОУ СОШ с. Канаевка | C6: 0.39 | D6: 0.29 | E6: 0.32 | F6: 0.56 | G6: 0.11 | H6: 0.44 | I6: 0.22 | J6: 0.41 | K6: 0.22 | L6: 0.55 | M6: 0.4 | N6: 0.25 | O6: 0.33 | P6: 0.11 | Q6: 0.22 | R6: 0.11 | S6: 0.22 | T6: 0.4 | U6: 0.51
A7: 2023-12-04 | B7: МБОУ СОШ с. Канаевка | C7: 1 | D7: 1 | E7: 1 | F7: 0.63 | G7: 1 | H7: 0.67 | I7: 1 | J7: 0.92 | K7: 0.33 | L7: 0.83 | M7: 1 | N7: 0 | O7: 1 | P7: 0.78 | Q7: 1 | R7: 1 | S7: 1 | T7: 1 | U7: 0.22
A8: 2023-12-04 | B8: МБОУ СОШ с. Канаевка | C8: 0.34 | D8: 0.51 | E8: 0.45 | F8: 0.31 | G8: 0.33 | H8: 0.37 | I8: 0.45 | J8: 0.49 | K8: 0.61 | L8: 0.65 | M8: 0.49 | N8: 0.49 | O8: 0.49 | P8: 0.44 | Q8: 0.61 | R8: 0.41 | S8: 0.65 | T8: 0.65 | U8: 0.49
A9: 2023-12-04 | B9: МБОУ СОШ с. Канаевка | C9: 0.6 | D9: 0.7 | E9: 0.47 | F9: 0.63 | G9: 0.36 | H9: 0.5 | I9: 0.36 | J9: 0.23 | K9: 0.32 | L9: 0.91 | M9: 0.67 | N9: 0.36 | O9: 0.55 | P9: 0.36 | Q9: 0.91 | R9: 0.27 | S9: 0.73 | T9: 0.85 | U9: 0.36
A10: 2023-12-04 | B10: МБОУ СОШ с. Канаевка | C10: 1 | D10: 1 | E10: 1 | F10: 0.5 | G10: 1 | H10: 0.83 | I10: 0.58 | J10: 1 | K10: 0.67 | L10: 0.5 | M10: 0.22 | N10: 1 | O10: 1 | P10: 0.33 | Q10: 1 | R10: 0.33 | S10: 0.33 | T10: 1 | U10: 0.33
A11: 2023-12-04 | B11: МБОУ СОШ с. Канаевка | C11: 0.53 | D11: 0.31 | E11: 0.53 | F11: 0.44 | G11: 0.62 | H11: 0.31 | I11: 0.22 | J11: 0.25 | K11: 0.22 | L11: 0.12 | M11: 0.25 | N11: 0.65 | O11: 0.37 | P11: 0.49 | Q11: 0.52 | R11: 0.43 | S11: 0.12 | T11: 0.29 | U11: 0.08
A12: 2023-12-04 | B12: МБОУ СОШ с. Канаевка | C12: 0.76 | D12: 0.5 | E12: 0.15 | F12: 0.56 | G12: 0.8 | H12: 0.4 | I12: 0.27 | J12: 0.6 | K12: 0.57 | L12: 0.47 | M12: 0.09 | N12: 0.73 | O12: 0.4 | P12: 0.49 | Q12: 0.03 | R12: 0.07 | S12: 0 | T12: 0.22 | U12: 0.49
A13: 2023-12-04 | B13: МБОУ СОШ с. Канаевка | C13: 0.46 | D13: 0.32 | E13: 0.54 | F13: 0.44 | G13: 0.11 | H13: 0.56 | I13: 0.31 | J13: 0.14 | K13: 0.17 | L13: 0.06 | M13: 0.26 | N13: 0.36 | O13: 0.34 | P13: 0.19 | Q13: 0.45 | R13: 0.11 | S13: 0.11 | T13: 0.41 | U13: 0.07
A14: 2023-12-04 | B14: МБОУ СОШ с. Канаевка | C14: 1 | D14: 0.83 | E14: 0.38 | F14: 0.63 | G14: 1 | H14: 0.5 | I14: 1 | J14: 1 | K14: 1 | L14: 1 | M14: 1 | N14: 1 | O14: 1 | P14: 0.67 | Q14: 0.5 | R14: 0 | S14: 1 | T14: 0 | U14: 1
A15: 2023-12-04 | B15: МБОУ СОШ с. Канаевка | C15: 0.43 | D15: 0.2 | E15: 0.58 | F15: 0.56 | G15: 0.66 | H15: 0.36 | I15: 0.23 | J15: 0.66 | K15: 0.69 | L15: 0.07 | M15: 0.48 | N15: 0.36 | O15: 0.4 | P15: 0.26 | Q15: 0.26 | R15: 0.79 | S15: 0.13 | T15: 0.31 | U15: 0.22
A16: 2023-12-04 | B16: МБОУ СОШ с. Канаевка | C16: 0.66 | D16: 0.79 | E16: 0.58 | F16: 0.88 | G16: 0.93 | H16: 0.37 | I16: 0.65 | J16: 0.37 | K16: 0.51 | L16: 0.56 | M16: 0.19 | N16: 0.74 | O16: 0.56 | P16: 0.68 | Q16: 0.74 | R16: 0.93 | S16: 0.93 | T16: 0.37 | U16: 0.12
A17: 2023-12-04 | B17: МБОУ СОШ с. Канаевка | C17: 0.23 | D17: 0.26 | E17: 0.13 | F17: 0.38 | G17: 0.36 | H17: 0.16 | I17: 0.09 | J17: 0.14 | K17: 0.23 | L17: 0.14 | M17: 0.14 | N17: 0.18 | O17: 0.21 | P17: 0.26 | Q17: 0.2 | R17: 0.11 | S17: 0.07 | T17: 0.38 | U17: 0.19
A18: 2023-12-04 | B18: МБОУ СОШ с. Канаевка | C18: 0.4 | D18: 0.35 | E18: 0.4 | F18: 0.44 | G18: 0.73 | H18: 0.27 | I18: 0.36 | J18: 0.6 | K18: 0.24 | L18: 0.18 | M18: 0.44 | N18: 0.33 | O18: 0.36 | P18: 0.24 | Q18: 0.15 | R18: 0.18 | S18: 0.12 | T18: 0.12 | U18: 0.6
A19: 2023-12-04 | B19: МБОУ СОШ с. Канаевка | C19: 0.84 | D19: 0.76 | E19: 0.2 | F19: 0.69 | G19: 0.93 | H19: 0 | I19: 0.7 | J19: 0.47 | K19: 0.47 | L19: 0.93 | M19: 0 | N19: 0.7 | O19: 0.47 | P19: 0.62 | Q19: 0.23 | R19: 0.93 | S19: 0 | T19: 0.31 | U19: 0.31
A20: 2023-12-04 | B20: МБОУ СОШ с. Канаевка | C20: 0.58 | D20: 0.49 | E20: 0.57 | F20: 0.75 | G20: 1 | H20: 0.65 | I20: 0.97 | J20: 0.32 | K20: 0.97 | L20: 0 | M20: 0.43 | N20: 0.97 | O20: 0.65 | P20: 0.86 | Q20: 0.65 | R20: 1 | S20: 1 | T20: 0.86 | U20: 0.43
A21: 2023-12-04 | B21: МБОУ СОШ с. Канаевка | C21: 0.58 | D21: 0.49 | E21: 0.57 | F21: 0.75 | G21: 1 | H21: 0.65 | I21: 0.97 | J21: 0.32 | K21: 0.97 | L21: 0 | M21: 0.43 | N21: 0.97 | O21: 0.65 | P21: 0.86 | Q21: 0.65 | R21: 1 | S21: 1 | T21: 0.86 | U21: 0.43
A51: Среднее | C51: =AVERAGE(C4:C50) -> 0.6133333333 | D51: =AVERAGE(D4:D50) -> 0.5511111111 | E51: =AVERAGE(E4:E50) -> 0.4894444444 | F51: 0.5672222222 | G51: 0.7111111111 | H51: =AVERAGE(H4:H50) -> 0.4294444444 | I51: =AVERAGE(I4:I50) -> 0.5411111111 | J51: 0.5394444444 | K51: 0.4677777778 | L51: 0.44 | M51: 0.4183333333 | N51: 0.5722222222 | O51: 0.5461111111 | P51: 0.5066666667 | Q51: 0.4727777778 | R51: =AVERAGE(R4:R50) -> 0.5 | S51: 0.4311111111 | T51: 0.4738888889 | U51: 0.3911111111
A52: СКО/станд. откл. группы А: | C52: =_xlfn.STDEV.S(C4:C50) -> 0.2359461554 | D52: =_xlfn.STDEV.S(D4:D50) -> 0.2545558737 | E52: 0.2374737688 | F52: 0.1436009813 | G52: 0.3210623705 | H52: 0.219316377 | I52: 0.3234353993 | J52: 0.2983774203 | K52: 0.2994221013 | L52: 0.337534312 | M52: 0.2760914171 | N52: 0.3305709064 | O52: 0.2398808255 | P52: 0.2596604117 | Q52: 0.3068972918 | R52: 0.3718633525 | S52: 0.4028266141 | T52: 0.3123561107 | U52: 0.2707264495
A55: ГРУППА Б
A56: 2023-12-04 | B56: МБОУ СОШ с. Канаевка | C56: 0.84 | D56: 0.64 | E56: 0.53 | F56: 0.5 | G56: 1 | H56: 0.77 | I56: 0.77 | J56: 1 | K56: 1 | L56: 0.77 | M56: 1 | N56: 0.64 | O56: 0.77 | P56: 0.68 | Q56: 0.7 | R56: 0.26 | S56: 0.26 | T56: 0.17 | U56: 1
A57: 2023-12-04 | B57: МБОУ СОШ с. Канаевка | C57: 0.73 | D57: 0.59 | E57: 0.64 | F57: 0.38 | G57: 0.18 | H57: 0.32 | I57: 0.55 | J57: 0.64 | K57: 0.5 | L57: 0.55 | M57: 0 | N57: 0.77 | O57: 0.55 | P57: 0.43 | Q57: 0.27 | R57: 0.91 | S57: 0.91 | T57: 0.73 | U57: 0.43
A58: 2023-12-04 | B58: МБОУ СОШ с. Канаевка | C58: 0.47 | D58: 0.34 | E58: 0.42 | F58: 0.44 | G58: 0.68 | H58: 0.27 | I58: 0.68 | J58: 0.41 | K58: 0.41 | L58: 0.41 | M58: 0.5 | N58: 0.27 | O58: 0.41 | P58: 0.5 | Q58: 0.41 | R58: 0.14 | S58: 0.14 | T58: 0.32 | U58: 0.14
A59: 2023-12-04 | B59: МБОУ СОШ с. Канаевка | C59: 0.66 | D59: 0.41 | E59: 0.84 | F59: 0.19 | G59: 1 | H59: 0.41 | I59: 0.94 | J59: 0.71 | K59: 0.94 | L59: 1 | M59: 0.86 | N59: 0.71 | O59: 0.71 | P59: 0.55 | Q59: 0.71 | R59: 1 | S59: 1 | T59: 0.55 | U59: 0.86
A60: 2023-12-04 | B60: МБОУ СОШ с. Канаевка | C60: 0.82 | D60: 0.57 | E60: 0.4 | F60: 0.44 | G60: 0.2 | H60: 1 | I60: 0.4 | J60: 0.2 | K60: 0.6 | L60: 0.6 | M60: 0.73 | N60: 0.4 | O60: 0.6 | P60: 0.47 | Q60: 1 | R60: 0.2 | S60: 0.2 | T60: 1 | U60: 0.73
A61: 2023-12-04 | B61: МБОУ СОШ с. Канаевка | C61: 0.62 | D61: 0.53 | E61: 0.44 | F61: 0.38 | G61: 0.65 | H61: 0.24 | I61: 0.44 | J61: 0.36 | K61: 0.61 | L61: 0.49 | M61: 0.54 | N61: 0.4 | O61: 0.49 | P61: 0.43 | Q61: 0.57 | R61: 0.57 | S61: 0.32 | T61: 0.75 | U61: 0.32
A62: 2023-12-04 | B62: МБОУ СОШ с. Канаевка | C62: 0.8 | D62: 0.59 | E62: 0.5 | F62: 0.44 | G62: 0.21 | H62: 0.82 | I62: 0.62 | J62: 0.62 | K62: 0.62 | L62: 0.21 | M62: 0.75 | N62: 0.56 | O62: 0.62 | P62: 0.41 | Q62: 0.92 | R62: 0.62 | S62: 0.21 | T62: 1 | U62: 0.68
A63: 2023-12-04 | B63: МБОУ СОШ с. Канаевка | C63: 0.79 | D63: 0.7 | E63: 0.44 | F63: 0.69 | G63: 1 | H63: 0.54 | I63: 0.81 | J63: 0.27 | K63: 0.54 | L63: 0.54 | M63: 0.36 | N63: 0.54 | O63: 0.54 | P63: 0.36 | Q63: 1 | R63: 0 | S63: 0.18 | T63: 0.36 | U63: 0.36
A64: 2023-12-04 | B64: МБОУ СОШ с. Канаевка | C64: 0.4 | D64: 0.41 | E64: 0.52 | F64: 0.5 | G64: 0.43 | H64: 0.36 | I64: 0.43 | J64: 0.43 | K64: 0.43 | L64: 0.14 | M64: 0.53 | N64: 0.14 | O64: 0.43 | P64: 0.53 | Q64: 0.43 | R64: 0.72 | S64: 0.72 | T64: 0.53 | U64: 0.33
A65: 2023-12-04 | B65: МБОУ СОШ с. Канаевка | C65: 0.78 | D65: 0.38 | E65: 0.75 | F65: 0.56 | G65: 1 | H65: 0.35 | I65: 0.71 | J65: 0.71 | K65: 1 | L65: 1 | M65: 1 | N65: 0.65 | O65: 0.71 | P65: 0 | Q65: 1 | R65: 0.71 | S65: 0 | T65: 0.94 | U65: 0.47
A66: 2023-12-04 | B66: МБОУ СОШ с. Канаевка | C66: 0.64 | D66: 1 | E66: 0.32 | F66: 0.88 | G66: 0.29 | H66: 0.72 | I66: 1 | J66: 0.79 | K66: 0.43 | L66: 1 | M66: 1 | N66: 0.36 | O66: 0.86 | P66: 1 | Q66: 1 | R66: 1 | S66: 1 | T66: 1 | U66: 1
A67: 2023-12-04 | B67: МБОУ СОШ с. Канаевка | C67: 0.76 | D67: 0.83 | E67: 0.47 | F67: 0.63 | G67: 1 | H67: 0.39 | I67: 0.39 | J67: 0.61 | K67: 0.88 | L67: 1 | M67: 1 | N67: 0 | O67: 0.66 | P67: 0.52 | Q67: 0.66 | R67: 1 | S67: 1 | T67: 0.96 | U67: 0.81
A99: Среднее | C99: =AVERAGE(C56:C98) -> 0.6925 | D99: 0.5825 | E99: 0.5225 | F99: 0.5025 | G99: 0.6366666667 | H99: 0.5158333333 | I99: 0.645 | J99: 0.5625 | K99: 0.6633333333 | L99: 0.6425 | M99: 0.6891666667 | N99: 0.4533333333 | O99: 0.6125 | P99: 0.49 | Q99: 0.7225 | R99: 0.5941666667 | S99: 0.495 | T99: 0.6925 | U99: 0.5941666667
A100: СКО/станд. откл. группы Б: | C100: =_xlfn.STDEV.S(C56:C98) -> 0.1403971639 | D100: =_xlfn.STDEV.S(D56:D98) -> 0.1942409469 | E100: 0.1507028986 | F100: 0.1749350529 | G100: 0.3575505898 | H100: 0.2499984848 | I100: 0.2098267684 | J100: 0.2329699551 | K100: 0.2284068672 | L100: 0.3111890685 | M100: 0.3144535905 | N100: 0.2355393553 | O100: 0.1368559296 | P100: 0.2283139784 | Q100: 0.2633395665 | R100: 0.3631543206 | S100: 0.3945423125 | T100: 0.300034089 | U100: 0.2893396348
A103: Количество учащихся группы А: | C103: =COUNT(C4:C50) -> 18
A104: Количество учащихся группы B: | C104: =COUNT(C56:C98) -> 12
A105: Значение t-критерия Стьюдента | C105: =ABS(C51-C99)/SQRT((C52^2)/C103+(C100^2)/C104) -> 1.150437208 | D105: =ABS(D51-D99)/SQRT((D52^2)/C103+(D100^2)/C104) -> 0.382221712 | E105: =ABS(E51-E99)/SQRT((E52^2)/C103+(E100^2)/C104) -> 0.4662838932 | F105: =ABS(F51-F99)/SQRT((F52^2)/C103+(F100^2)/C104) -> 1.064629193 | G105: =ABS(G51-G99)/SQRT((G52^2)/C103+(G100^2)/C104) -> 0.5816636125 | H105: =ABS(H51-H99)/SQRT((H52^2)/C103+(H100^2)/C104) -> 0.9731543104 | I105: =ABS(I51-I99)/SQRT((I52^2)/C103+(I100^2)/C104) -> 1.066965726 | J105: =ABS(J51-J99)/SQRT((J52^2)/C103+(J100^2)/C104) -> 0.2369321864 | K105: =ABS(K51-K99)/SQRT((K52^2)/C103+(K100^2)/C104) -> 2.024745933 | L105: =ABS(L51-L99)/SQRT((L52^2)/C103+(L100^2)/C104) -> 1.687541127 | M105: =ABS(M51-M99)/SQRT((M52^2)/C103+(M100^2)/C104) -> 2.424843489 | N105: =ABS(N51-N99)/SQRT((N52^2)/C103+(N100^2)/C104) -> 1.149654779 | O105: =ABS(O51-O99)/SQRT((O52^2)/C103+(O100^2)/C104) -> 0.9624997029 | P105: =ABS(P51-P99)/SQRT((P52^2)/C103+(P100^2)/C104) -> 0.1853031415 | Q105: =ABS(Q51-Q99)/SQRT((Q52^2)/C103+(Q100^2)/C104) -> 2.37976109 | R105: =ABS(R51-R99)/SQRT((R52^2)/C103+(R100^2)/C104) -> 0.6891228424 | S105: =ABS(S51-S99)/SQRT((S52^2)/C103+(S100^2)/C104) -> 0.4308668095 | T105: =ABS(T51-T99)/SQRT((T52^2)/C103+(T100^2)/C104) -> 1.923120111 | U105: =ABS(U51-U99)/SQRT((U52^2)/C103+(U100^2)/C104) -> 1.931824376
A107: Граничное значение t-критерия Стьюдента для уровня значимости 5%: | F107: =TINV(5%,C103+C104-2) -> 2.048407142
A108: Граничное значение t-критерия Стьюдента для уровня значимости 10%: | F108: =TINV(10%,C103+C104-2) -> 1.701130934
A109: Граничное значение t-критерия Стьюдента для уровня значимости 20%: | F109: =TINV(20%,C104+C105-2) -> 1.363430318

Sheet Диаграмма
